[Event "*** SCC Grand Prix: Titled Tuesday Blitz"]
[Site "Chess.com"]
[Date "2020.06.23"]
[Round "3"]
[White "MarcoRiehle"]
[Black "MrChampion_Coach"]
[Result "0-1"]
[WhiteElo "2692"]
[BlackElo "2444"]
[TimeControl "180+1"]
[EndTime "10:29:54 PDT"]
[Termination "MrChampion_Coach won by checkmate"]

1. e4 {[%clk 0:03:00.9]} 1... c5 {[%clk 0:02:59.8]} 2. a3 {[%clk 0:03:00.6]}
2... g6 {[%clk 0:02:57.7]} 3. h4 {[%clk 0:02:59.8]} 3... Nf6 {[%clk 0:02:56.6]}
4. e5 {[%clk 0:02:59.7]} 4... Nd5 {[%clk 0:02:56.5]} 5. c4 {[%clk 0:02:59.4]}
5... Nc7 {[%clk 0:02:55.7]} 6. h5 {[%clk 0:02:57.4]} 6... Bg7 {[%clk 0:02:54.3]}
7. Nf3 {[%clk 0:02:56.9]} 7... Nc6 {[%clk 0:02:53.9]} 8. Qe2 {[%clk 0:02:53.3]}
8... Ne6 {[%clk 0:02:53.4]} 9. h6 {[%clk 0:02:50]} 9... Bf8 {[%clk 0:02:35.6]}
10. Nc3 {[%clk 0:02:48.7]} 10... d6 {[%clk 0:02:22.2]} 11. Nd5 {[%clk
0:02:41.5]} 11... dxe5 {[%clk 0:02:15.4]} 12. Nxe5 {[%clk 0:02:35.2]} 12... Qd6
{[%clk 0:02:09.8]} 13. Nxc6 {[%clk 0:02:29.1]} 13... bxc6 {[%clk 0:02:10.7]} 14.
Nc3 {[%clk 0:02:26.6]} 14... Nd4 {[%clk 0:02:10.1]} 15. Qd1 {[%clk 0:02:24.2]}
15... Bf5 {[%clk 0:02:09]} 16. d3 {[%clk 0:02:24.3]} 16... e5 {[%clk 0:01:36.7]}
17. g4 {[%clk 0:02:12.3]} 17... Bxg4 {[%clk 0:01:30.4]} 18. Qxg4 {[%clk
0:02:13.2]} 18... Nc2+ {[%clk 0:01:30.4]} 19. Kd1 {[%clk 0:02:13.4]} 19... Nxa1
{[%clk 0:01:30.3]} 20. Ne4 {[%clk 0:02:13]} 20... Qd4 {[%clk 0:01:17.6]} 21. Be3
{[%clk 0:01:36.1]} 21... Qxb2 {[%clk 0:01:00]} 22. Nf6+ {[%clk 0:01:27.6]} 22...
Ke7 {[%clk 0:00:59.7]} 23. Bg5 {[%clk 0:01:27.1]} 23... Qb1+ {[%clk 0:00:43.8]}
24. Ke2 {[%clk 0:01:19.7]} 24... Qc2+ {[%clk 0:00:41.6]} 25. Ke1 {[%clk
0:01:05.1]} 25... Qb1+ {[%clk 0:00:40.3]} 26. Ke2 {[%clk 0:01:05.4]} 26... Qc2+
{[%clk 0:00:40.2]} 27. Kf3 {[%clk 0:00:55.5]} 27... Qd1+ {[%clk 0:00:39.5]} 28.
Kg3 {[%clk 0:00:46.1]} 28... Qxg4+ {[%clk 0:00:39.5]} 29. Nxg4+ {[%clk
0:00:46.6]} 29... Ke6 {[%clk 0:00:40]} 30. Nf6 {[%clk 0:00:42.8]} 30... Kd6
{[%clk 0:00:37]} 31. Bh3 {[%clk 0:00:38.9]} 31... Nc2 {[%clk 0:00:34.7]} 32. Rb1
{[%clk 0:00:38]} 32... Kc7 {[%clk 0:00:29.5]} 33. Rc1 {[%clk 0:00:15.1]} 33...
Nd4 {[%clk 0:00:27.6]} 34. Re1 {[%clk 0:00:15.6]} 34... Bd6 {[%clk 0:00:26.5]}
35. Kg2 {[%clk 0:00:14.4]} 35... Nc2 {[%clk 0:00:24.7]} 36. Rc1 {[%clk
0:00:13.4]} 36... Nd4 {[%clk 0:00:24]} 37. Re1 {[%clk 0:00:13.6]} 37... Rab8
{[%clk 0:00:24.2]} 38. Ng4 {[%clk 0:00:13.3]} 38... f5 {[%clk 0:00:23]} 39. Nxe5
{[%clk 0:00:11.9]} 39... Rhe8 {[%clk 0:00:23.3]} 40. Bf4 {[%clk 0:00:10.3]}
40... Rb2 {[%clk 0:00:20.5]} 41. Kg3 {[%clk 0:00:05.8]} 41... Re2 {[%clk
0:00:20.5]} 42. Rxe2 {[%clk 0:00:05.6]} 42... Nxe2+ {[%clk 0:00:21.4]} 43. Kf3
{[%clk 0:00:06.2]} 43... Nxf4 {[%clk 0:00:22.3]} 44. Nf7 {[%clk 0:00:05.8]}
44... Be5 {[%clk 0:00:23.2]} 45. Nxe5 {[%clk 0:00:05]} 45... Nxh3 {[%clk
0:00:23]} 46. Nf7 {[%clk 0:00:05.3]} 46... Re7 {[%clk 0:00:21.8]} 47. Nh8 {[%clk
0:00:05.6]} 47... Ng5+ {[%clk 0:00:21.7]} 48. Kf4 {[%clk 0:00:06.1]} 48... Ne6+
{[%clk 0:00:22.6]} 49. Ke5 {[%clk 0:00:06.1]} 49... Kd7 {[%clk 0:00:23.1]} 50.
Kf6 {[%clk 0:00:06.3]} 50... Nd8 {[%clk 0:00:22.5]} 51. Kg5 {[%clk 0:00:04.6]}
51... Ke8 {[%clk 0:00:22.4]} 52. Kf6 {[%clk 0:00:04.6]} 52... Kf8 {[%clk
0:00:23.1]} 53. f4 {[%clk 0:00:05.2]} 53... Re6+ {[%clk 0:00:22.7]} 54. Kg5
{[%clk 0:00:05.1]} 54... Kg8 {[%clk 0:00:23]} 55. d4 {[%clk 0:00:04.7]} 55...
Kxh8 {[%clk 0:00:23]} 56. d5 {[%clk 0:00:04.6]} 56... Re7 {[%clk 0:00:23.9]} 57.
d6 {[%clk 0:00:04.8]} 57... Rd7 {[%clk 0:00:24.2]} 58. Kf6 {[%clk 0:00:04.5]}
58... Rxd6+ {[%clk 0:00:25.1]} 59. Ke7 {[%clk 0:00:05]} 59... Rd4 {[%clk
0:00:26]} 60. a4 {[%clk 0:00:05.4]} 60... Nb7 {[%clk 0:00:26.9]} 61. a5 {[%clk
0:00:06.3]} 61... Nxa5 {[%clk 0:00:27.8]} 62. Kf6 {[%clk 0:00:06.6]} 62... Nxc4
{[%clk 0:00:28.7]} 63. Ke6 {[%clk 0:00:06.6]} 63... Nd2 {[%clk 0:00:29.6]} 64.
Kf6 {[%clk 0:00:07.5]} 64... Ne4+ {[%clk 0:00:30.3]} 65. Kf7 {[%clk 0:00:08.4]}
65... a5 {[%clk 0:00:31.2]} 66. Ke7 {[%clk 0:00:08.2]} 66... a4 {[%clk
0:00:32.1]} 67. Ke6 {[%clk 0:00:09.1]} 67... a3 {[%clk 0:00:33]} 68. Ke5 {[%clk
0:00:10]} 68... a2 {[%clk 0:00:33.9]} 69. Ke6 {[%clk 0:00:10.9]} 69... a1=Q
{[%clk 0:00:33.6]} 70. Ke7 {[%clk 0:00:11.8]} 70... Qa7+ {[%clk 0:00:33.3]} 71.
Ke8 {[%clk 0:00:12.7]} 71... Qd7+ {[%clk 0:00:33.1]} 72. Kf8 {[%clk 0:00:13.6]}
72... Qd8+ {[%clk 0:00:32.9]} 73. Kf7 {[%clk 0:00:13.7]} 73... Qf6+ {[%clk
0:00:33]} 74. Ke8 {[%clk 0:00:13.4]} 74... Rd8# {[%clk 0:00:33.9]} 0-1

[Event "*** SCC Grand Prix: Titled Tuesday Blitz"]
[Site "Chess.com"]
[Date "2020.06.23"]
[Round "3"]
[White "Paladin61"]
[Black "WPWPWP-2015"]
[Result "1-0"]
[WhiteElo "2543"]
[BlackElo "2347"]
[TimeControl "180+1"]
[EndTime "10:29:55 PDT"]
[Termination "Paladin61 won by checkmate"]

1. b3 {[%clk 0:02:56.5]} 1... e5 {[%clk 0:02:59.2]} 2. Bb2 {[%clk 0:02:55.9]}
2... Nc6 {[%clk 0:02:58.9]} 3. e3 {[%clk 0:02:56]} 3... Nf6 {[%clk 0:02:58.6]}
4. Bb5 {[%clk 0:02:55.1]} 4... Bd6 {[%clk 0:02:59.2]} 5. Na3 {[%clk 0:02:54.7]}
5... Na5 {[%clk 0:02:59.2]} 6. Be2 {[%clk 0:02:54.3]} 6... c5 {[%clk 0:02:55]}
7. c4 {[%clk 0:02:46.4]} 7... O-O {[%clk 0:02:52.2]} 8. d3 {[%clk 0:02:41]} 8...
Re8 {[%clk 0:02:46.6]} 9. Bf3 {[%clk 0:02:36]} 9... Nc6 {[%clk 0:02:45.3]} 10.
Ne2 {[%clk 0:02:34.2]} 10... Bc7 {[%clk 0:02:40.8]} 11. Nc3 {[%clk 0:02:25.7]}
11... a6 {[%clk 0:02:36.8]} 12. O-O {[%clk 0:02:22.2]} 12... d6 {[%clk
0:02:33.7]} 13. Nc2 {[%clk 0:02:20.8]} 13... Ne7 {[%clk 0:02:28.8]} 14. d4
{[%clk 0:02:12.6]} 14... cxd4 {[%clk 0:02:23.7]} 15. exd4 {[%clk 0:02:12.2]}
15... Ng6 {[%clk 0:02:22.4]} 16. dxe5 {[%clk 0:01:59.3]} 16... dxe5 {[%clk
0:02:18.3]} 17. Qxd8 {[%clk 0:01:56.2]} 17... Rxd8 {[%clk 0:02:16.5]} 18. Rad1
{[%clk 0:01:55.9]} 18... Bg4 {[%clk 0:01:57]} 19. Bxg4 {[%clk 0:01:37.1]} 19...
Nxg4 {[%clk 0:01:56.1]} 20. Nd5 {[%clk 0:01:36.6]} 20... Bd6 {[%clk 0:01:49.1]}
21. h3 {[%clk 0:01:26.2]} 21... Nh6 {[%clk 0:01:39.1]} 22. Nce3 {[%clk
0:01:20.5]} 22... f6 {[%clk 0:01:18.6]} 23. b4 {[%clk 0:01:02.2]} 23... Bf8
{[%clk 0:00:52.7]} 24. c5 {[%clk 0:00:59.4]} 24... a5 {[%clk 0:00:40.5]} 25. Nb6
{[%clk 0:00:50.4]} 25... axb4 {[%clk 0:00:40]} 26. Nxa8 {[%clk 0:00:42.5]} 26...
Rxa8 {[%clk 0:00:40.9]} 27. Rd7 {[%clk 0:00:39.4]} 27... Bxc5 {[%clk 0:00:37.9]}
28. Rxb7 {[%clk 0:00:33.2]} 28... Rxa2 {[%clk 0:00:37]} 29. Nc4 {[%clk
0:00:32.8]} 29... Nf5 {[%clk 0:00:29.6]} 30. Rd1 {[%clk 0:00:29.3]} 30... Ra8
{[%clk 0:00:26.7]} 31. Rdd7 {[%clk 0:00:26.1]} 31... Bf8 {[%clk 0:00:26.5]} 32.
g3 {[%clk 0:00:22]} 32... h5 {[%clk 0:00:25.5]} 33. h4 {[%clk 0:00:18.2]} 33...
Rc8 {[%clk 0:00:21.5]} 34. Rbc7 {[%clk 0:00:15.7]} 34... Rb8 {[%clk 0:00:20.4]}
35. Kf1 {[%clk 0:00:14.5]} 35... Re8 {[%clk 0:00:13]} 36. Ke2 {[%clk 0:00:14.2]}
36... Ra8 {[%clk 0:00:08.6]} 37. Ra7 {[%clk 0:00:13.3]} 37... Rc8 {[%clk
0:00:08.3]} 38. Rdc7 {[%clk 0:00:12]} 38... Rd8 {[%clk 0:00:08.1]} 39. Rd7
{[%clk 0:00:09.7]} 39... Re8 {[%clk 0:00:08.3]} 40. Nb6 {[%clk 0:00:08.5]} 40...
Nd6 {[%clk 0:00:04.4]} 41. Nd5 {[%clk 0:00:07]} 41... Ne4 {[%clk 0:00:03.2]} 42.
Kf3 {[%clk 0:00:05.8]} 42... Nc5 {[%clk 0:00:03]} 43. Rdc7 {[%clk 0:00:05.2]}
43... Ne6 {[%clk 0:00:03.1]} 44. Rc6 {[%clk 0:00:05.3]} 44... Nd8 {[%clk
0:00:01.9]} 45. Rc8 {[%clk 0:00:04.7]} 45... e4+ {[%clk 0:00:02.3]} 46. Ke2
{[%clk 0:00:04.7]} 46... f5 {[%clk 0:00:02.2]} 47. Bf6 {[%clk 0:00:04.6]} 47...
gxf6 {[%clk 0:00:01.9]} 48. Nxf6+ {[%clk 0:00:04]} 48... Kh8 {[%clk 0:00:02.3]}
49. Rh7# {[%clk 0:00:04.8]} 1-0

[Event "*** SCC Grand Prix: Titled Tuesday Blitz"]
[Site "Chess.com"]
[Date "2020.06.23"]
[Round "3"]
[White "IMHansNiemann"]
[Black "DenLaz"]
[Result "1-0"]
[WhiteElo "2982"]
[BlackElo "2702"]
[TimeControl "180+1"]
[EndTime "10:29:56 PDT"]
[Termination "IMHansNiemann won by resignation"]

1. d4 {[%clk 0:02:51.8]} 1... d5 {[%clk 0:02:59.4]} 2. c4 {[%clk 0:02:46.6]}
2... c6 {[%clk 0:02:58.4]} 3. Nf3 {[%clk 0:02:47.2]} 3... Nf6 {[%clk 0:02:55.1]}
4. e3 {[%clk 0:02:47.2]} 4... Bf5 {[%clk 0:02:50.8]} 5. Nc3 {[%clk 0:02:46.4]}
5... e6 {[%clk 0:02:50]} 6. Nh4 {[%clk 0:02:45.5]} 6... Be4 {[%clk 0:02:48.6]}
7. f3 {[%clk 0:02:45.5]} 7... Bg6 {[%clk 0:02:49.1]} 8. Qb3 {[%clk 0:02:45.9]}
8... Qc7 {[%clk 0:02:48.3]} 9. Bd2 {[%clk 0:02:45.1]} 9... Be7 {[%clk
0:02:47.6]} 10. cxd5 {[%clk 0:02:45.2]} 10... cxd5 {[%clk 0:02:43.7]} 11. O-O-O
{[%clk 0:02:44.5]} 11... Nc6 {[%clk 0:02:41.3]} 12. Nxg6 {[%clk 0:02:43.2]}
12... hxg6 {[%clk 0:02:42.2]} 13. Kb1 {[%clk 0:02:43.5]} 13... O-O {[%clk
0:02:27.5]} 14. Rc1 {[%clk 0:02:40.2]} 14... Rfc8 {[%clk 0:02:03.8]} 15. g4
{[%clk 0:02:39.5]} 15... Na5 {[%clk 0:02:01.9]} 16. Qd1 {[%clk 0:02:38.9]} 16...
Nc4 {[%clk 0:02:00.7]} 17. Bxc4 {[%clk 0:02:37.7]} 17... dxc4 {[%clk 0:01:59.5]}
18. e4 {[%clk 0:02:33.7]} 18... b5 {[%clk 0:01:55]} 19. e5 {[%clk 0:02:20.4]}
19... Nd5 {[%clk 0:01:36.6]} 20. Nxd5 {[%clk 0:02:14.4]} 20... exd5 {[%clk
0:01:35.8]} 21. f4 {[%clk 0:02:14.6]} 21... Qb6 {[%clk 0:01:26.1]} 22. Be3
{[%clk 0:02:09.4]} 22... b4 {[%clk 0:01:24.8]} 23. Qf3 {[%clk 0:02:09.5]} 23...
b3 {[%clk 0:00:52.9]} 24. Qxd5 {[%clk 0:01:49.4]} 24... bxa2+ {[%clk 0:00:51.1]}
25. Ka1 {[%clk 0:01:49]} 25... Rab8 {[%clk 0:00:37.6]} 26. Rc2 {[%clk
0:01:48.3]} 26... c3 {[%clk 0:00:37.7]} 27. b3 {[%clk 0:01:43.3]} 27... Ba3
{[%clk 0:00:35.3]} 28. Bc1 {[%clk 0:01:07.2]} 28... Rd8 {[%clk 0:00:32.7]} 29.
Qc4 {[%clk 0:00:59.9]} 29... Rxd4 {[%clk 0:00:30.7]} 30. Qxc3 {[%clk 0:00:57.9]}
30... Bb4 {[%clk 0:00:26]} 31. Qe3 {[%clk 0:00:52.6]} 31... Rbd8 {[%clk
0:00:22.2]} 32. f5 {[%clk 0:00:47.5]} 32... Qb7 {[%clk 0:00:21.2]} 33. Rf1
{[%clk 0:00:41.6]} 33... Rd3 {[%clk 0:00:20.5]} 34. Qf4 {[%clk 0:00:30.3]} 34...
Rxb3 {[%clk 0:00:19.9]} 35. Bb2 {[%clk 0:00:26.9]} 35... Ba3 {[%clk 0:00:12.8]}
36. Qf2 {[%clk 0:00:26.8]} 36... Bxb2+ {[%clk 0:00:12.2]} 37. Rxb2 {[%clk
0:00:27.3]} 37... Rxb2 {[%clk 0:00:11.3]} 38. Qxb2 {[%clk 0:00:27]} 38... Qa6
{[%clk 0:00:12.2]} 39. Re1 {[%clk 0:00:25]} 39... Qa5 {[%clk 0:00:11.9]} 40. Qc1
{[%clk 0:00:16.3]} 40... Re8 {[%clk 0:00:09.8]} 41. e6 {[%clk 0:00:15.7]} 41...
fxe6 {[%clk 0:00:09.9]} 42. fxe6 {[%clk 0:00:16.2]} 42... Qd5 {[%clk 0:00:09.4]}
43. e7 {[%clk 0:00:14.5]} 43... Qd6 {[%clk 0:00:07.5]} 44. Qc4+ {[%clk
0:00:13.9]} 44... Kh7 {[%clk 0:00:07]} 45. Qe4 {[%clk 0:00:14.3]} 45... Qf6+
{[%clk 0:00:04.4]} 46. Kxa2 {[%clk 0:00:14.6]} 46... Qf2+ {[%clk 0:00:05]} 47.
Re2 {[%clk 0:00:14.9]} 47... Qc5 {[%clk 0:00:05.4]} 48. h4 {[%clk 0:00:14.7]}
48... Qa5+ {[%clk 0:00:04.8]} 49. Kb1 {[%clk 0:00:15.2]} 49... Qb5+ {[%clk
0:00:05]} 50. Kc1 {[%clk 0:00:14.1]} 50... Rc8+ {[%clk 0:00:03.5]} 51. Kd1
{[%clk 0:00:12.5]} 51... Qd7+ {[%clk 0:00:03.2]} 52. Ke1 {[%clk 0:00:12.6]}
52... Re8 {[%clk 0:00:03]} 53. h5 {[%clk 0:00:12.4]} 53... Rxe7 {[%clk
0:00:02.8]} 54. Qxe7 {[%clk 0:00:11.2]} 54... Qxg4 {[%clk 0:00:02.1]} 55. hxg6+
{[%clk 0:00:11.3]} 55... Qxg6 {[%clk 0:00:01.9]} 56. Qe4 {[%clk 0:00:11.9]}
56... Qxe4 {[%clk 0:00:01.9]} 57. Rxe4 {[%clk 0:00:12.8]} 57... Kg6 {[%clk
0:00:02.5]} 58. Ra4 {[%clk 0:00:13.5]} 58... Kf5 {[%clk 0:00:03.4]} 59. Rxa7
{[%clk 0:00:14.4]} 59... g5 {[%clk 0:00:04.3]} 60. Ke2 {[%clk 0:00:15]} 60...
Kg4 {[%clk 0:00:05.2]} 61. Kf2 {[%clk 0:00:15.8]} 61... Kh5 {[%clk 0:00:06.1]}
62. Kg2 {[%clk 0:00:16.2]} 62... Kh4 {[%clk 0:00:07]} 63. Ra4+ {[%clk
0:00:15.9]} 63... g4 {[%clk 0:00:07.8]} 64. Rb4 {[%clk 0:00:16.8]} 64... Kg5
{[%clk 0:00:07.9]} 65. Kg3 {[%clk 0:00:17.7]} 65... Kf5 {[%clk 0:00:08.6]} 66.
Rxg4 {[%clk 0:00:18.3]} 66... Ke5 {[%clk 0:00:09.5]} 67. Rf4 {[%clk 0:00:19]}
67... Kd5 {[%clk 0:00:10.4]} 68. Kf3 {[%clk 0:00:19.5]} 68... Kc5 {[%clk
0:00:11.3]} 69. Ke3 {[%clk 0:00:20.4]} 69... Kb5 {[%clk 0:00:12.2]} 70. Rd4
{[%clk 0:00:20.8]} 70... Kb6 {[%clk 0:00:13.1]} 71. Kd3 {[%clk 0:00:21.7]} 71...
Kc6 {[%clk 0:00:14]} 72. Kc4 {[%clk 0:00:21.7]} 1-0

[Event "*** SCC Grand Prix: Titled Tuesday Blitz"]
[Site "Chess.com"]
[Date "2020.06.23"]
[Round "3"]
[White "1977Ivan"]
[Black "penguingm1"]
[Result "0-1"]
[WhiteElo "2669"]
[BlackElo "2911"]
[TimeControl "180+1"]
[EndTime "10:29:58 PDT"]
[Termination "penguingm1 won on time"]

1. d4 {[%clk 0:03:00.9]} 1... d5 {[%clk 0:02:57.9]} 2. c4 {[%clk 0:02:55.2]}
2... e6 {[%clk 0:02:55.1]} 3. Nc3 {[%clk 0:02:54.4]} 3... Be7 {[%clk 0:02:53.6]}
4. cxd5 {[%clk 0:02:52.7]} 4... exd5 {[%clk 0:02:54.5]} 5. Bf4 {[%clk 0:02:53]}
5... c6 {[%clk 0:02:53.8]} 6. e3 {[%clk 0:02:52.5]} 6... Bf5 {[%clk 0:02:52.8]}
7. Nge2 {[%clk 0:02:47.3]} 7... Nd7 {[%clk 0:02:48.8]} 8. Ng3 {[%clk 0:02:47.1]}
8... Bg6 {[%clk 0:02:49.1]} 9. Be2 {[%clk 0:02:35.8]} 9... Ngf6 {[%clk
0:02:43.6]} 10. h4 {[%clk 0:02:35]} 10... h6 {[%clk 0:02:43.7]} 11. h5 {[%clk
0:02:30.3]} 11... Bh7 {[%clk 0:02:43.5]} 12. Bd3 {[%clk 0:02:30]} 12... Bxd3
{[%clk 0:02:43.7]} 13. Qxd3 {[%clk 0:02:29.6]} 13... O-O {[%clk 0:02:43.7]} 14.
Nf5 {[%clk 0:02:29.7]} 14... Re8 {[%clk 0:02:26.1]} 15. O-O-O {[%clk 0:02:26.5]}
15... b5 {[%clk 0:02:16.4]} 16. Kb1 {[%clk 0:02:24.3]} 16... Bf8 {[%clk
0:02:11.8]} 17. f3 {[%clk 0:02:20.6]} 17... b4 {[%clk 0:01:50.5]} 18. Na4 {[%clk
0:02:13.7]} 18... Qa5 {[%clk 0:01:49.6]} 19. b3 {[%clk 0:02:06.4]} 19... Nb6
{[%clk 0:01:28.8]} 20. Nc5 {[%clk 0:01:57.7]} 20... Bxc5 {[%clk 0:01:21.6]} 21.
dxc5 {[%clk 0:01:57.4]} 21... Nbd7 {[%clk 0:01:18.5]} 22. Qd4 {[%clk 0:01:36.8]}
22... Qxc5 {[%clk 0:01:08.9]} 23. Rc1 {[%clk 0:01:17.6]} 23... Qxd4 {[%clk
0:00:28]} 24. exd4 {[%clk 0:01:16.9]} 24... a5 {[%clk 0:00:21.2]} 25. Rxc6
{[%clk 0:00:53.7]} 25... a4 {[%clk 0:00:20.2]} 26. Ne3 {[%clk 0:00:19.9]} 26...
axb3 {[%clk 0:00:18.6]} 27. axb3 {[%clk 0:00:20]} 27... Ra3 {[%clk 0:00:19.2]}
28. Kb2 {[%clk 0:00:20]} 28... Rea8 {[%clk 0:00:19.5]} 29. Nc2 {[%clk
0:00:19.8]} 29... Ra2+ {[%clk 0:00:17.4]} 30. Kb1 {[%clk 0:00:20]} 30... Nf8
{[%clk 0:00:16.5]} 31. g4 {[%clk 0:00:18.3]} 31... Ne6 {[%clk 0:00:16.7]} 32.
Be5 {[%clk 0:00:18.5]} 32... Nd7 {[%clk 0:00:16.9]} 33. Rc1 {[%clk 0:00:16.9]}
33... Nxe5 {[%clk 0:00:14.8]} 34. dxe5 {[%clk 0:00:17.1]} 34... Ng5 {[%clk
0:00:10.3]} 35. Nd4 {[%clk 0:00:16.6]} 35... Ra1+ {[%clk 0:00:09.1]} 36. Kc2
{[%clk 0:00:16.7]} 36... R8a2+ {[%clk 0:00:09.3]} 37. Kd1 {[%clk 0:00:16.6]}
37... Rxc1+ {[%clk 0:00:08.7]} 38. Kxc1 {[%clk 0:00:16.5]} 38... Rf2 {[%clk
0:00:07.8]} 39. Rc8+ {[%clk 0:00:14.2]} 39... Kh7 {[%clk 0:00:08]} 40. Rc7
{[%clk 0:00:14.2]} 40... Kg8 {[%clk 0:00:05.2]} 41. Rc8+ {[%clk 0:00:13.9]}
41... Kh7 {[%clk 0:00:05.8]} 42. Rc7 {[%clk 0:00:14.1]} 42... Rf1+ {[%clk
0:00:06.4]} 43. Kb2 {[%clk 0:00:11.1]} 43... Ne6 {[%clk 0:00:05.8]} 44. Nxe6
{[%clk 0:00:08]} 44... fxe6 {[%clk 0:00:06.7]} 45. Re7 {[%clk 0:00:07.8]} 45...
Rf2+ {[%clk 0:00:06.3]} 46. Kc1 {[%clk 0:00:07.7]} 46... Rxf3 {[%clk 0:00:06.9]}
47. Rxe6 {[%clk 0:00:07.9]} 47... Rxb3 {[%clk 0:00:07.3]} 48. Rd6 {[%clk
0:00:08.1]} 48... Rg3 {[%clk 0:00:07.7]} 49. e6 {[%clk 0:00:07.2]} 49... Rxg4
{[%clk 0:00:06.7]} 50. Rxd5 {[%clk 0:00:07.2]} 50... Re4 {[%clk 0:00:06]} 51.
Rd6 {[%clk 0:00:07.3]} 51... Re5 {[%clk 0:00:06.4]} 52. Kb2 {[%clk 0:00:06.4]}
52... Rxh5 {[%clk 0:00:06.5]} 53. Rd8 {[%clk 0:00:04.1]} 53... Re5 {[%clk
0:00:06.7]} 54. Re8 {[%clk 0:00:03.8]} 54... Kg6 {[%clk 0:00:07]} 55. Kb3 {[%clk
0:00:03.7]} 55... Kf6 {[%clk 0:00:07.1]} 56. Kxb4 {[%clk 0:00:03.7]} 56... Rxe6
{[%clk 0:00:07.4]} 57. Rh8 {[%clk 0:00:03.6]} 57... Kg5 {[%clk 0:00:07.5]} 58.
Kc5 {[%clk 0:00:03.6]} 58... g6 {[%clk 0:00:08.1]} 59. Kd5 {[%clk 0:00:03.7]}
59... Re2 {[%clk 0:00:08.3]} 60. Kd4 {[%clk 0:00:03.7]} 60... h5 {[%clk
0:00:08.6]} 61. Rc8 {[%clk 0:00:03]} 61... h4 {[%clk 0:00:08.1]} 62. Kd3 {[%clk
0:00:03.3]} 62... Re7 {[%clk 0:00:08.1]} 63. Rc4 {[%clk 0:00:03]} 63... Kh5
{[%clk 0:00:08.4]} 0-1

[Event "*** SCC Grand Prix: Titled Tuesday Blitz"]
[Site "Chess.com"]
[Date "2020.06.23"]
[Round "3"]
[White "SaqoChess_Twitch"]
[Black "grandcoach"]
[Result "1-0"]
[WhiteElo "2399"]
[BlackElo "2083"]
[TimeControl "180+1"]
[EndTime "10:30:01 PDT"]
[Termination "SaqoChess_Twitch won on time"]

1. d4 {[%clk 0:03:00.9]} 1... Nf6 {[%clk 0:02:59.3]} 2. c4 {[%clk 0:03:01.1]}
2... e6 {[%clk 0:02:58.7]} 3. Nc3 {[%clk 0:02:57.1]} 3... d5 {[%clk 0:02:55.5]}
4. Nf3 {[%clk 0:02:56.2]} 4... c5 {[%clk 0:02:54.9]} 5. cxd5 {[%clk 0:02:55.1]}
5... Nxd5 {[%clk 0:02:55.5]} 6. e4 {[%clk 0:02:54.6]} 6... Nxc3 {[%clk
0:02:55.7]} 7. bxc3 {[%clk 0:02:55.5]} 7... cxd4 {[%clk 0:02:54.1]} 8. cxd4
{[%clk 0:02:56.4]} 8... Nc6 {[%clk 0:02:54.6]} 9. Be2 {[%clk 0:02:51.5]} 9...
Bb4+ {[%clk 0:02:54.6]} 10. Bd2 {[%clk 0:02:49.8]} 10... Bxd2+ {[%clk 0:02:55]}
11. Qxd2 {[%clk 0:02:50.2]} 11... O-O {[%clk 0:02:55.5]} 12. O-O {[%clk
0:02:49.7]} 12... b6 {[%clk 0:02:56]} 13. Rfd1 {[%clk 0:02:48.8]} 13... Bb7
{[%clk 0:02:56.1]} 14. Rac1 {[%clk 0:02:49.4]} 14... Qd6 {[%clk 0:02:52.5]} 15.
e5 {[%clk 0:02:46.6]} 15... Qe7 {[%clk 0:02:40.9]} 16. Bd3 {[%clk 0:02:46.6]}
16... h6 {[%clk 0:02:34.9]} 17. Qf4 {[%clk 0:02:45.2]} 17... Nb4 {[%clk
0:02:21.6]} 18. Be4 {[%clk 0:02:40.1]} 18... Nxa2 {[%clk 0:02:06.9]} 19. Ra1
{[%clk 0:02:06.9]} 19... Bxe4 {[%clk 0:01:56.9]} 20. Rxa2 {[%clk 0:02:04.6]}
20... Bd5 {[%clk 0:01:55.3]} 21. Rb2 {[%clk 0:02:01.9]} 21... Rfc8 {[%clk
0:01:46.5]} 22. Nd2 {[%clk 0:01:53.2]} 22... Qg5 {[%clk 0:01:42]} 23. Qxg5
{[%clk 0:01:52.3]} 23... hxg5 {[%clk 0:01:42.3]} 24. f3 {[%clk 0:01:53.2]} 24...
Rc6 {[%clk 0:01:36.8]} 25. Kf2 {[%clk 0:01:49.4]} 25... a5 {[%clk 0:01:27.6]}
26. Rdb1 {[%clk 0:01:48.9]} 26... a4 {[%clk 0:01:27.5]} 27. Rxb6 {[%clk
0:01:36]} 27... Rxb6 {[%clk 0:01:24.4]} 28. Rxb6 {[%clk 0:01:36.9]} 28... a3
{[%clk 0:01:24.9]} 29. Rb1 {[%clk 0:01:37.5]} 29... a2 {[%clk 0:01:24.5]} 30.
Ra1 {[%clk 0:01:38.1]} 30... Rb8 {[%clk 0:01:21.3]} 31. Ke3 {[%clk 0:01:38.3]}
31... Rb2 {[%clk 0:01:19.4]} 32. Kd3 {[%clk 0:01:38.4]} 32... Kh7 {[%clk
0:01:11.4]} 33. Kc3 {[%clk 0:01:35.3]} 33... Rb7 {[%clk 0:01:06]} 34. h3 {[%clk
0:01:23.3]} 34... Kg6 {[%clk 0:01:04.7]} 35. Kd3 {[%clk 0:01:17]} 35... Kf5
{[%clk 0:00:58.4]} 36. Ke3 {[%clk 0:01:06.2]} 36... Rb2 {[%clk 0:00:56.7]} 37.
g3 {[%clk 0:01:01]} 37... f6 {[%clk 0:00:51.6]} 38. f4 {[%clk 0:00:54.1]} 38...
gxf4+ {[%clk 0:00:43.9]} 39. gxf4 {[%clk 0:00:53.7]} 39... Rb8 {[%clk
0:00:35.1]} 40. h4 {[%clk 0:00:15.7]} 40... Rh8 {[%clk 0:00:28.5]} 41. Nf3
{[%clk 0:00:15.7]} 41... Ra8 {[%clk 0:00:26.7]} 42. Nd2 {[%clk 0:00:10.1]} 42...
Ra3+ {[%clk 0:00:26.2]} 43. Ke2 {[%clk 0:00:07.7]} 43... Kxf4 {[%clk 0:00:23.1]}
44. Rf1+ {[%clk 0:00:04.6]} 44... Kg4 {[%clk 0:00:22.9]} 45. exf6 {[%clk
0:00:04.7]} 45... gxf6 {[%clk 0:00:20.8]} 46. Rg1+ {[%clk 0:00:04.4]} 46... Kxh4
{[%clk 0:00:20.4]} 47. Ra1 {[%clk 0:00:04.8]} 47... Kg5 {[%clk 0:00:16.6]} 48.
Rg1+ {[%clk 0:00:03.9]} 48... Kf4 {[%clk 0:00:15.4]} 49. Ra1 {[%clk 0:00:04.8]}
49... Re3+ {[%clk 0:00:13.9]} 50. Kf2 {[%clk 0:00:05.4]} 50... Rc3 {[%clk
0:00:11.6]} 51. Rf1 {[%clk 0:00:05.5]} 51... Rc2 {[%clk 0:00:10.6]} 52. Ke2+
{[%clk 0:00:05.5]} 52... Kg5 {[%clk 0:00:09.8]} 53. Kd3 {[%clk 0:00:05.9]} 53...
Rxd2+ {[%clk 0:00:05]} 54. Kxd2 {[%clk 0:00:06]} 54... Be4 {[%clk 0:00:05.5]}
55. Kc3 {[%clk 0:00:04.6]} 55... Bb1 {[%clk 0:00:05.2]} 56. Kb2 {[%clk
0:00:05.1]} 56... f5 {[%clk 0:00:01.6]} 57. Re1 {[%clk 0:00:04.3]} 57... Kf6
{[%clk 0:00:01.7]} 58. Re2 {[%clk 0:00:04.3]} 58... Ke7 {[%clk 0:00:01.7]} 59.
d5 {[%clk 0:00:03.6]} 1-0